[Event "*** Titled Tuesday Blitz"]
[Site "Chess.com"]
[Date "2020.05.12"]
[Round "9"]
[White "MiroVlasenko"]
[Black "TERMINATOR_PC"]
[Result "1-0"]
[WhiteElo "2613"]
[BlackElo "2472"]
[TimeControl "180+1"]
[EndTime "11:43:14 PDT"]
[Termination "MiroVlasenko won on time"]

1. d4 {[%clk 0:03:00.9]} 1... Nf6 {[%clk 0:03:00.9]} 2. Bg5 {[%clk 0:03:00.5]}
2... d5 {[%clk 0:02:58.4]} 3. e3 {[%clk 0:03:00.3]} 3... c5 {[%clk 0:02:58.2]}
4. c3 {[%clk 0:02:58.3]} 4... Nc6 {[%clk 0:02:58]} 5. Bxf6 {[%clk 0:02:54.9]}
5... gxf6 {[%clk 0:02:57.4]} 6. dxc5 {[%clk 0:02:53.8]} 6... e5 {[%clk
0:02:50.3]} 7. b4 {[%clk 0:02:53.8]} 7... a5 {[%clk 0:02:50.4]} 8. Bb5 {[%clk
0:02:53.7]} 8... Rg8 {[%clk 0:02:45.5]} 9. g3 {[%clk 0:02:53]} 9... Bg4 {[%clk
0:02:41.9]} 10. Qc2 {[%clk 0:02:48]} 10... h5 {[%clk 0:02:05]} 11. Nd2 {[%clk
0:02:40.5]} 11... h4 {[%clk 0:02:03.9]} 12. Ngf3 {[%clk 0:02:39.8]} 12... h3
{[%clk 0:02:00.1]} 13. Nh4 {[%clk 0:02:36.9]} 13... Bd7 {[%clk 0:01:43.4]} 14.
Qb3 {[%clk 0:02:23.8]} 14... Be6 {[%clk 0:01:24]} 15. Qb2 {[%clk 0:02:14.9]}
15... Bh6 {[%clk 0:01:10.3]} 16. Rd1 {[%clk 0:02:03.9]} 16... Kf8 {[%clk
0:00:59.9]} 17. f4 {[%clk 0:01:52.2]} 17... d4 {[%clk 0:00:20.3]} 18. cxd4
{[%clk 0:01:29.5]} 18... exd4 {[%clk 0:00:15.1]} 19. Ndf3 {[%clk 0:01:26.3]}
19... Nxb4 {[%clk 0:00:12.8]} 20. Rxd4 {[%clk 0:01:22.9]} 20... Qc7 {[%clk
0:00:11.4]} 21. Qc3 {[%clk 0:01:07.6]} 21... Rc8 {[%clk 0:00:10.4]} 22. a3
{[%clk 0:01:04]} 22... Qxc5 {[%clk 0:00:08.6]} 23. Qxc5+ {[%clk 0:00:59.3]}
23... Rxc5 {[%clk 0:00:09.5]} 24. axb4 {[%clk 0:00:58.4]} 24... Rxb5 {[%clk
0:00:10]} 25. O-O {[%clk 0:00:56.3]} 25... axb4 {[%clk 0:00:09.8]} 26. Rb1
{[%clk 0:00:54.8]} 26... b3 {[%clk 0:00:10.1]} 27. Rd6 {[%clk 0:00:52.5]} 27...
Ke7 {[%clk 0:00:10.2]} 28. Rd2 {[%clk 0:00:49.7]} 28... Rc8 {[%clk 0:00:09.6]}
29. Nd4 {[%clk 0:00:49.4]} 29... Rb4 {[%clk 0:00:08]} 30. Rbb2 {[%clk
0:00:45.6]} 30... Bg7 {[%clk 0:00:06.5]} 31. Nhf5+ {[%clk 0:00:44.5]} 31... Kf8
{[%clk 0:00:06.9]} 32. Kf2 {[%clk 0:00:41.6]} 32... Rc3 {[%clk 0:00:06.2]} 33.
Ke2 {[%clk 0:00:38.6]} 33... Bc4+ {[%clk 0:00:06.3]} 34. Kf3 {[%clk 0:00:38.3]}
34... b5 {[%clk 0:00:07.2]} 35. Nd6 {[%clk 0:00:37.3]} 35... Bd5+ {[%clk
0:00:07.3]} 36. Kg4 {[%clk 0:00:35.2]} 36... f5+ {[%clk 0:00:07.6]} 37. Kxf5
{[%clk 0:00:34.7]} 37... Bxd4 {[%clk 0:00:07.4]} 38. exd4 {[%clk 0:00:34.6]}
38... Ra4 {[%clk 0:00:05.4]} 39. Nxb5 {[%clk 0:00:34]} 39... Rf3 {[%clk
0:00:03]} 40. Ke5 {[%clk 0:00:32.7]} 40... Bc4 {[%clk 0:00:02.4]} 41. Nd6 {[%clk
0:00:31.5]} 41... Ra5+ {[%clk 0:00:02.3]} 42. d5 {[%clk 0:00:31.9]} 1-0

[Event "*** Titled Tuesday Blitz"]
[Site "Chess.com"]
[Date "2020.05.12"]
[Round "9"]
[White "rasmussvane"]
[Black "Rodalquilar"]
[Result "1-0"]
[WhiteElo "2885"]
[BlackElo "2617"]
[TimeControl "180+1"]
[EndTime "11:43:17 PDT"]
[Termination "rasmussvane won on time"]

1. Nf3 {[%clk 0:03:00.9]} 1... d5 {[%clk 0:02:57.8]} 2. g3 {[%clk 0:03:00.7]}
2... Nf6 {[%clk 0:02:58.2]} 3. Bg2 {[%clk 0:03:01.1]} 3... e6 {[%clk 0:02:58.8]}
4. O-O {[%clk 0:03:01.6]} 4... Be7 {[%clk 0:02:59.4]} 5. c4 {[%clk 0:03:01.8]}
5... O-O {[%clk 0:02:59.6]} 6. b3 {[%clk 0:03:02.1]} 6... d4 {[%clk 0:02:59.8]}
7. e3 {[%clk 0:03:00.8]} 7... c5 {[%clk 0:03:00.1]} 8. Ne5 {[%clk 0:02:56.8]}
8... Nfd7 {[%clk 0:02:45.4]} 9. exd4 {[%clk 0:02:53.2]} 9... cxd4 {[%clk
0:02:43.3]} 10. Nxd7 {[%clk 0:02:51.9]} 10... Qxd7 {[%clk 0:02:44.2]} 11. d3
{[%clk 0:02:50.9]} 11... f6 {[%clk 0:02:43]} 12. Ba3 {[%clk 0:02:48.5]} 12...
Bxa3 {[%clk 0:02:38.8]} 13. Nxa3 {[%clk 0:02:49.4]} 13... Nc6 {[%clk 0:02:39.6]}
14. Rc1 {[%clk 0:02:45.3]} 14... a5 {[%clk 0:02:31]} 15. c5 {[%clk 0:02:42.7]}
15... Nb4 {[%clk 0:02:24.5]} 16. Nc4 {[%clk 0:02:19.5]} 16... Ra6 {[%clk
0:02:21.7]} 17. Qd2 {[%clk 0:02:16]} 17... e5 {[%clk 0:01:44.1]} 18. Nb6 {[%clk
0:02:00.6]} 18... Qb5 {[%clk 0:01:33.9]} 19. a3 {[%clk 0:01:54.7]} 19... Qxd3
{[%clk 0:01:22]} 20. Qxd3 {[%clk 0:00:56.4]} 20... Nxd3 {[%clk 0:01:22.9]} 21.
Bd5+ {[%clk 0:00:54.8]} 21... Kh8 {[%clk 0:01:19.4]} 22. Nxc8 {[%clk 0:00:54.8]}
22... Nxc1 {[%clk 0:01:00.6]} 23. Rxc1 {[%clk 0:00:55.7]} 23... Rxc8 {[%clk
0:00:51.5]} 24. Bxb7 {[%clk 0:00:55.8]} 24... Raa8 {[%clk 0:00:15]} 25. Bxa8
{[%clk 0:00:55.8]} 25... Rxa8 {[%clk 0:00:15.3]} 26. b4 {[%clk 0:00:55.3]} 26...
axb4 {[%clk 0:00:15.8]} 27. axb4 {[%clk 0:00:56.2]} 27... d3 {[%clk 0:00:07.8]}
28. c6 {[%clk 0:00:33.6]} 28... Kg8 {[%clk 0:00:07.4]} 29. b5 {[%clk 0:00:33.2]}
29... Rc8 {[%clk 0:00:05.9]} 30. Rb1 {[%clk 0:00:25.7]} 30... Kf7 {[%clk
0:00:04.2]} 31. Kg2 {[%clk 0:00:16.8]} 31... Ke6 {[%clk 0:00:04.4]} 32. b6
{[%clk 0:00:16.1]} 32... Kd6 {[%clk 0:00:04.1]} 33. c7 {[%clk 0:00:15.4]} 33...
d2 {[%clk 0:00:01.9]} 34. b7 {[%clk 0:00:12]} 34... Kxc7 {[%clk 0:00:01.8]} 35.
bxc8=Q+ {[%clk 0:00:11.9]} 35... Kxc8 {[%clk 0:00:02.7]} 36. Rd1 {[%clk
0:00:12.2]} 1-0

[Event "*** Titled Tuesday Blitz"]
[Site "Chess.com"]
[Date "2020.05.12"]
[Round "9"]
[White "LiemLe"]
[Black "Chepaschess"]
[Result "1-0"]
[WhiteElo "2965"]
[BlackElo "2777"]
[TimeControl "180+1"]
[EndTime "11:43:19 PDT"]
[Termination "LiemLe won by resignation"]

1. Nf3 {[%clk 0:03:00.9]} 1... c5 {[%clk 0:02:59.8]} 2. c4 {[%clk 0:03:00.6]}
2... Nc6 {[%clk 0:02:59.2]} 3. Nc3 {[%clk 0:03:01.1]} 3... g6 {[%clk 0:02:57.6]}
4. e3 {[%clk 0:02:56.8]} 4... Nf6 {[%clk 0:02:57.8]} 5. d4 {[%clk 0:02:57.3]}
5... cxd4 {[%clk 0:02:58.7]} 6. exd4 {[%clk 0:02:58.1]} 6... d5 {[%clk
0:02:59.5]} 7. cxd5 {[%clk 0:02:59]} 7... Nxd5 {[%clk 0:03:00.3]} 8. Bc4 {[%clk
0:02:59.5]} 8... Nb6 {[%clk 0:02:59.5]} 9. Bb3 {[%clk 0:02:59.2]} 9... Bg7
{[%clk 0:03:00.1]} 10. d5 {[%clk 0:02:54]} 10... Na5 {[%clk 0:02:58.8]} 11. O-O
{[%clk 0:02:52.4]} 11... O-O {[%clk 0:02:56.7]} 12. h3 {[%clk 0:02:51.4]} 12...
Nxb3 {[%clk 0:02:30]} 13. axb3 {[%clk 0:02:46.7]} 13... e6 {[%clk 0:02:29.9]}
14. d6 {[%clk 0:02:43.6]} 14... Bd7 {[%clk 0:02:18.3]} 15. Be3 {[%clk
0:02:20.3]} 15... Bc6 {[%clk 0:02:15]} 16. Bc5 {[%clk 0:02:10.8]} 16... Re8
{[%clk 0:02:06]} 17. Re1 {[%clk 0:01:55.4]} 17... e5 {[%clk 0:02:05.2]} 18. Nd2
{[%clk 0:01:38.9]} 18... Re6 {[%clk 0:01:56.9]} 19. Nc4 {[%clk 0:01:30.5]} 19...
Nxc4 {[%clk 0:01:48.9]} 20. bxc4 {[%clk 0:01:31.4]} 20... Rc8 {[%clk 0:01:42.6]}
21. Ba3 {[%clk 0:01:23.8]} 21... Bf8 {[%clk 0:01:21.5]} 22. c5 {[%clk
0:01:07.6]} 22... Qg5 {[%clk 0:01:10.1]} 23. Qg4 {[%clk 0:01:05.1]} 23... Qxg4
{[%clk 0:01:10]} 24. hxg4 {[%clk 0:01:06]} 24... f6 {[%clk 0:00:58.9]} 25. b4
{[%clk 0:00:53.6]} 25... a6 {[%clk 0:00:58.8]} 26. Bb2 {[%clk 0:00:46.2]} 26...
Kf7 {[%clk 0:00:56.5]} 27. Rad1 {[%clk 0:00:33.1]} 27... h5 {[%clk 0:00:56.6]}
28. g5 {[%clk 0:00:29.2]} 28... fxg5 {[%clk 0:00:55.5]} 29. Ne4 {[%clk 0:00:20]}
29... Bxe4 {[%clk 0:00:43.9]} 30. Rxe4 {[%clk 0:00:20.9]} 30... Bg7 {[%clk
0:00:43.8]} 31. f3 {[%clk 0:00:21.3]} 31... Rd8 {[%clk 0:00:42]} 32. Rd5 {[%clk
0:00:18.3]} 32... Rde8 {[%clk 0:00:37.5]} 33. Kf2 {[%clk 0:00:18.5]} 33... Bf6
{[%clk 0:00:36.1]} 34. Ke2 {[%clk 0:00:18.5]} 34... g4 {[%clk 0:00:32.2]} 35.
fxg4 {[%clk 0:00:18.3]} 35... hxg4 {[%clk 0:00:33.1]} 36. Rxg4 {[%clk
0:00:18.7]} 36... e4 {[%clk 0:00:33.6]} 37. Rf4 {[%clk 0:00:18.4]} 37... Rd8
{[%clk 0:00:24.4]} 38. Ke3 {[%clk 0:00:16.9]} 38... Kg7 {[%clk 0:00:23.2]} 39.
Rxf6 {[%clk 0:00:16.8]} 39... Rxf6 {[%clk 0:00:23.2]} 40. Kxe4 {[%clk
0:00:11.8]} 40... Kf7 {[%clk 0:00:23.7]} 41. Bxf6 {[%clk 0:00:11.4]} 41... Kxf6
{[%clk 0:00:24.6]} 42. Re5 {[%clk 0:00:10.6]} 42... Rh8 {[%clk 0:00:22.8]} 43.
Kd5 {[%clk 0:00:10.5]} 43... Rh1 {[%clk 0:00:22.9]} 44. Re6+ {[%clk 0:00:09]}
44... Kf7 {[%clk 0:00:22.3]} 45. Re7+ {[%clk 0:00:09.1]} 1-0

[Event "*** Titled Tuesday Blitz"]
[Site "Chess.com"]
[Date "2020.05.12"]
[Round "9"]
[White "YaWaleriy"]
[Black "Jbd735"]
[Result "0-1"]
[WhiteElo "2247"]
[BlackElo "2444"]
[TimeControl "180+1"]
[EndTime "11:43:19 PDT"]
[Termination "Jbd735 won by checkmate"]

1. d4 {[%clk 0:03:00.9]} 1... d5 {[%clk 0:02:59.7]} 2. Nf3 {[%clk 0:02:59.9]}
2... Nf6 {[%clk 0:02:58.7]} 3. c4 {[%clk 0:02:59.9]} 3... c6 {[%clk 0:02:59]} 4.
e3 {[%clk 0:02:59.8]} 4... e6 {[%clk 0:02:58.7]} 5. Bd3 {[%clk 0:02:59.7]} 5...
Nbd7 {[%clk 0:02:50]} 6. O-O {[%clk 0:02:59.3]} 6... Bd6 {[%clk 0:02:49.8]} 7.
Nc3 {[%clk 0:02:53.2]} 7... dxc4 {[%clk 0:02:47.9]} 8. Bxc4 {[%clk 0:02:52.7]}
8... b5 {[%clk 0:02:48.1]} 9. Bd3 {[%clk 0:02:52.4]} 9... a6 {[%clk 0:02:47.7]}
10. a4 {[%clk 0:02:52]} 10... b4 {[%clk 0:02:44.8]} 11. Nb1 {[%clk 0:02:51.3]}
11... c5 {[%clk 0:02:44.3]} 12. Nbd2 {[%clk 0:02:48.9]} 12... Bb7 {[%clk
0:02:41]} 13. Nc4 {[%clk 0:02:48.1]} 13... Bc7 {[%clk 0:02:39.7]} 14. Qe2 {[%clk
0:02:48.4]} 14... O-O {[%clk 0:02:38.2]} 15. e4 {[%clk 0:02:43.8]} 15... cxd4
{[%clk 0:02:33.8]} 16. e5 {[%clk 0:02:43.6]} 16... Ng4 {[%clk 0:02:16.4]} 17.
Bxh7+ {[%clk 0:02:41.7]} 17... Kh8 {[%clk 0:02:09.9]} 18. Be4 {[%clk 0:02:39.9]}
18... Bd5 {[%clk 0:01:54.9]} 19. Ng5 {[%clk 0:02:32.9]} 19... f5 {[%clk
0:01:30.5]} 20. Bxd5 {[%clk 0:02:12.6]} 20... exd5 {[%clk 0:01:29.1]} 21. Ne6
{[%clk 0:02:11.9]} 21... Qh4 {[%clk 0:01:28.8]} 22. h3 {[%clk 0:02:11.8]} 22...
dxc4 {[%clk 0:01:25.4]} 23. Nxf8 {[%clk 0:02:10.2]} 23... Rxf8 {[%clk
0:00:59.6]} 24. hxg4 {[%clk 0:02:09.1]} 24... fxg4 {[%clk 0:00:35.1]} 25. g3
{[%clk 0:02:08.8]} 25... Qh3 {[%clk 0:00:32.3]} 26. Bf4 {[%clk 0:02:08]} 26...
g5 {[%clk 0:00:32.3]} 27. Bxg5 {[%clk 0:01:50.9]} 27... Nxe5 {[%clk 0:00:32]}
28. f4 {[%clk 0:01:48.7]} 28... gxf3 {[%clk 0:00:16.8]} 29. Qh2 {[%clk
0:01:42.8]} 29... Qxh2+ {[%clk 0:00:16.6]} 30. Kxh2 {[%clk 0:01:41.6]} 30...
Ng4+ {[%clk 0:00:17.5]} 31. Kg1 {[%clk 0:01:41.2]} 31... Bxg3 {[%clk 0:00:16.7]}
32. Rad1 {[%clk 0:01:36.9]} 32... d3 {[%clk 0:00:15.8]} 33. Rc1 {[%clk
0:01:36.6]} 33... f2+ {[%clk 0:00:05.8]} 34. Kg2 {[%clk 0:01:35.9]} 34... Bf4
{[%clk 0:00:06.4]} 35. Bxf4 {[%clk 0:01:30.3]} 35... Rxf4 {[%clk 0:00:07.3]} 36.
Rh1+ {[%clk 0:01:25]} 36... Kg7 {[%clk 0:00:07]} 37. Kg3 {[%clk 0:01:24.8]}
37... Rd4 {[%clk 0:00:07]} 38. Rh4 {[%clk 0:01:24.3]} 38... d2 {[%clk
0:00:03.8]} 39. Rd1 {[%clk 0:01:20.2]} 39... c3 {[%clk 0:00:04.1]} 40. bxc3
{[%clk 0:01:18.9]} 40... bxc3 {[%clk 0:00:05]} 41. Rxg4+ {[%clk 0:01:06.8]}
41... Rxg4+ {[%clk 0:00:05.9]} 42. Kxg4 {[%clk 0:00:58.5]} 42... c2 {[%clk
0:00:06.8]} 43. Rxd2 {[%clk 0:00:57]} 43... c1=Q {[%clk 0:00:06.9]} 44. Rxf2
{[%clk 0:00:57.3]} 44... Qd1+ {[%clk 0:00:06.9]} 45. Kg3 {[%clk 0:00:55.7]}
45... Qxa4 {[%clk 0:00:07]} 46. Rf4 {[%clk 0:00:55]} 46... Qb5 {[%clk
0:00:07.1]} 47. Rg4+ {[%clk 0:00:54.3]} 47... Kf6 {[%clk 0:00:07.3]} 48. Rf4+
{[%clk 0:00:54.8]} 48... Ke5 {[%clk 0:00:07.5]} 49. Rg4 {[%clk 0:00:54.6]} 49...
Qd3+ {[%clk 0:00:07.3]} 50. Kh4 {[%clk 0:00:54.3]} 50... Qh7+ {[%clk 0:00:06.4]}
51. Kg3 {[%clk 0:00:53.9]} 51... Qd3+ {[%clk 0:00:05.3]} 52. Kh4 {[%clk
0:00:53.3]} 52... Qe2 {[%clk 0:00:05.3]} 53. Rg5+ {[%clk 0:00:52.5]} 53... Kf4
{[%clk 0:00:04.9]} 54. Rg6 {[%clk 0:00:45.6]} 54... Qh2# {[%clk 0:00:04.2]} 0-1

[Event "*** Titled Tuesday Blitz"]
[Site "Chess.com"]
[Date "2020.05.12"]
[Round "9"]
[White "javirec"]
[Black "ShieldingOff"]
[Result "1-0"]
[WhiteElo "2289"]
[BlackElo "2048"]
[TimeControl "180+1"]
[EndTime "11:43:19 PDT"]
[Termination "javirec won on time"]

1. e4 {[%clk 0:03:00.9]} 1... c5 {[%clk 0:02:59]} 2. Nf3 {[%clk 0:03:00.4]} 2...
Nc6 {[%clk 0:02:59]} 3. d4 {[%clk 0:03:00]} 3... cxd4 {[%clk 0:02:58.9]} 4. Nxd4
{[%clk 0:02:58.5]} 4... e5 {[%clk 0:02:58.9]} 5. Nb5 {[%clk 0:02:43.1]} 5... d6
{[%clk 0:02:58]} 6. a4 {[%clk 0:02:36.2]} 6... a6 {[%clk 0:02:56.8]} 7. N5a3
{[%clk 0:02:35.7]} 7... Be6 {[%clk 0:02:54.5]} 8. Bc4 {[%clk 0:02:34.5]} 8...
Bxc4 {[%clk 0:02:48.9]} 9. Nxc4 {[%clk 0:02:34.1]} 9... Nf6 {[%clk 0:02:47.5]}
10. Nc3 {[%clk 0:02:33.4]} 10... Rc8 {[%clk 0:02:40.7]} 11. a5 {[%clk
0:02:20.7]} 11... Nd4 {[%clk 0:02:36.4]} 12. Nb6 {[%clk 0:02:19]} 12... Rc5
{[%clk 0:02:23.1]} 13. O-O {[%clk 0:02:16.3]} 13... Rxa5 {[%clk 0:02:02.1]} 14.
Rxa5 {[%clk 0:02:15.7]} 14... Qxb6 {[%clk 0:02:02.1]} 15. Ra2 {[%clk 0:02:07.1]}
15... Be7 {[%clk 0:01:58.7]} 16. Be3 {[%clk 0:02:06.3]} 16... O-O {[%clk
0:01:58.3]} 17. Ne2 {[%clk 0:01:56.1]} 17... Nxe2+ {[%clk 0:01:56]} 18. Qxe2
{[%clk 0:01:53.4]} 18... Qc6 {[%clk 0:01:55.6]} 19. f3 {[%clk 0:01:52.3]} 19...
Rc8 {[%clk 0:01:47.6]} 20. c3 {[%clk 0:01:48.9]} 20... d5 {[%clk 0:01:47.6]} 21.
exd5 {[%clk 0:01:47.8]} 21... Nxd5 {[%clk 0:01:47.4]} 22. Kh1 {[%clk 0:01:39.5]}
22... b5 {[%clk 0:01:31.6]} 23. Raa1 {[%clk 0:01:37.4]} 23... h5 {[%clk
0:01:28.7]} 24. Rad1 {[%clk 0:01:36.3]} 24... h4 {[%clk 0:01:24.3]} 25. Qd3
{[%clk 0:01:34.3]} 25... Nxe3 {[%clk 0:01:11.9]} 26. Qxe3 {[%clk 0:01:34.3]}
26... Bf6 {[%clk 0:00:59.6]} 27. Qe4 {[%clk 0:01:29.4]} 27... h3 {[%clk
0:00:58.8]} 28. Qxc6 {[%clk 0:01:27.2]} 28... Rxc6 {[%clk 0:00:58.3]} 29. gxh3
{[%clk 0:01:24.5]} 29... a5 {[%clk 0:00:57.3]} 30. Rd3 {[%clk 0:01:16.4]} 30...
b4 {[%clk 0:00:57]} 31. Ra1 {[%clk 0:01:16.8]} 31... Rc5 {[%clk 0:00:55.2]} 32.
Kg2 {[%clk 0:01:12.5]} 32... g6 {[%clk 0:00:50.6]} 33. Kf2 {[%clk 0:01:12.6]}
33... Kf8 {[%clk 0:00:40.4]} 34. Ke2 {[%clk 0:01:12.2]} 34... Ke7 {[%clk
0:00:40.1]} 35. Kd2 {[%clk 0:01:12.5]} 35... b3 {[%clk 0:00:34]} 36. Ra3 {[%clk
0:01:06.1]} 36... Rb5 {[%clk 0:00:29.7]} 37. c4 {[%clk 0:01:04.5]} 37... Rc5
{[%clk 0:00:27.3]} 38. Rdxb3 {[%clk 0:00:57.1]} 38... Rxc4 {[%clk 0:00:23.3]}
39. Rxa5 {[%clk 0:00:57.1]} 39... Bg5+ {[%clk 0:00:19.8]} 40. Kd3 {[%clk
0:00:48.1]} 40... Rd4+ {[%clk 0:00:18.5]} 41. Kc2 {[%clk 0:00:47.5]} 41... Rd2+
{[%clk 0:00:18.3]} 42. Kb1 {[%clk 0:00:47.5]} 42... Bf4 {[%clk 0:00:10.5]} 43.
Ra6 {[%clk 0:00:39.6]} 43... Rxh2 {[%clk 0:00:09.5]} 44. Rb7+ {[%clk 0:00:39.3]}
44... Kf8 {[%clk 0:00:09.2]} 45. Rf6 {[%clk 0:00:38.8]} 45... Rxh3 {[%clk
0:00:05.7]} 46. Rfxf7+ {[%clk 0:00:38.8]} 46... Kg8 {[%clk 0:00:05.4]} 47. Rfc7
{[%clk 0:00:38.3]} 1-0

[Event "*** Titled Tuesday Blitz"]
[Site "Chess.com"]
[Date "2020.05.12"]
[Round "9"]
[White "kot60"]
[Black "mshuaau0"]
[Result "0-1"]
[WhiteElo "2318"]
[BlackElo "2185"]
[TimeControl "180+1"]
[EndTime "11:43:19 PDT"]
[Termination "mshuaau0 won on time"]

1. e4 {[%clk 0:02:40]} 1... e5 {[%clk 0:02:58.8]} 2. Nc3 {[%clk 0:02:39.3]} 2...
Nc6 {[%clk 0:02:59]} 3. f4 {[%clk 0:02:39]} 3... exf4 {[%clk 0:02:57]} 4. d4
{[%clk 0:02:37]} 4... Bb4 {[%clk 0:02:53.3]} 5. Bxf4 {[%clk 0:02:36]} 5... Nf6
{[%clk 0:02:50.2]} 6. Qd3 {[%clk 0:02:34.2]} 6... Bxc3+ {[%clk 0:02:45.9]} 7.
bxc3 {[%clk 0:02:33.2]} 7... Qe7 {[%clk 0:02:46]} 8. e5 {[%clk 0:02:31.3]} 8...
Nd5 {[%clk 0:02:41]} 9. Bg3 {[%clk 0:02:27.6]} 9... d6 {[%clk 0:02:38.2]} 10.
Nf3 {[%clk 0:02:23.6]} 10... dxe5 {[%clk 0:02:36.1]} 11. dxe5 {[%clk 0:02:23]}
11... Be6 {[%clk 0:02:32.9]} 12. Rb1 {[%clk 0:02:17.6]} 12... Nb6 {[%clk
0:02:29.7]} 13. Qe4 {[%clk 0:01:55.7]} 13... Bd5 {[%clk 0:02:17.5]} 14. Qf4
{[%clk 0:01:43.1]} 14... Bxa2 {[%clk 0:02:10.9]} 15. Rd1 {[%clk 0:01:37.9]}
15... Qc5 {[%clk 0:01:57.6]} 16. Bd3 {[%clk 0:01:26.2]} 16... Bc4 {[%clk
0:01:50.1]} 17. Bf2 {[%clk 0:01:22.2]} 17... Qb5 {[%clk 0:01:31.3]} 18. O-O
{[%clk 0:01:08.5]} 18... Bxd3 {[%clk 0:01:30.2]} 19. cxd3 {[%clk 0:01:07.7]}
19... O-O {[%clk 0:01:25.4]} 20. d4 {[%clk 0:00:57.7]} 20... Nd5 {[%clk
0:01:24.2]} 21. Qd2 {[%clk 0:00:55.8]} 21... Qc4 {[%clk 0:01:21.7]} 22. Rb1
{[%clk 0:00:47.2]} 22... b6 {[%clk 0:01:07]} 23. Rfc1 {[%clk 0:00:46.9]} 23...
a5 {[%clk 0:00:37.7]} 24. Be1 {[%clk 0:00:39.1]} 24... f6 {[%clk 0:00:36.2]} 25.
exf6 {[%clk 0:00:34.1]} 25... Rxf6 {[%clk 0:00:35.3]} 26. Bg3 {[%clk 0:00:33.9]}
26... Raf8 {[%clk 0:00:33]} 27. h3 {[%clk 0:00:29.3]} 27... Rxf3 {[%clk
0:00:32]} 28. gxf3 {[%clk 0:00:28.4]} 28... Rxf3 {[%clk 0:00:32.9]} 29. Kg2
{[%clk 0:00:25]} 29... Rd3 {[%clk 0:00:16.2]} 30. Qe1 {[%clk 0:00:22]} 30...
Ne3+ {[%clk 0:00:14.2]} 31. Kh2 {[%clk 0:00:20.3]} 31... Qd5 {[%clk 0:00:12.8]}
32. Qe2 {[%clk 0:00:18.5]} 32... Qe4 {[%clk 0:00:11.5]} 33. Re1 {[%clk
0:00:14.7]} 33... Ne7 {[%clk 0:00:09.7]} 34. Bxc7 {[%clk 0:00:05]} 34... N7f5
{[%clk 0:00:08.3]} 35. Rxb6 {[%clk 0:00:02.3]} 35... Rxc3 {[%clk 0:00:07.8]} 0-1

[Event "*** Titled Tuesday Blitz"]
[Site "Chess.com"]
[Date "2020.05.12"]
[Round "9"]
[White "RianKapriaga"]
[Black "TrenerChos"]
[Result "0-1"]
[WhiteElo "2220"]
[BlackElo "2384"]
[TimeControl "180+1"]
[EndTime "11:43:21 PDT"]
[Termination "TrenerChos won on time"]

1. d4 {[%clk 0:02:59.4]} 1... Nf6 {[%clk 0:03:00.9]} 2. Nf3 {[%clk 0:02:59.5]}
2... c5 {[%clk 0:03:00.8]} 3. e3 {[%clk 0:02:57.8]} 3... e6 {[%clk 0:03:00.7]}
4. b3 {[%clk 0:02:58]} 4... d5 {[%clk 0:03:00]} 5. Bb2 {[%clk 0:02:58]} 5... Be7
{[%clk 0:02:58.8]} 6. Nbd2 {[%clk 0:02:58.3]} 6... cxd4 {[%clk 0:02:58]} 7. exd4
{[%clk 0:02:58.1]} 7... O-O {[%clk 0:02:55.5]} 8. Bd3 {[%clk 0:02:58.4]} 8...
Nc6 {[%clk 0:02:52.3]} 9. a3 {[%clk 0:02:57.8]} 9... a5 {[%clk 0:02:49.2]} 10.
O-O {[%clk 0:02:57.7]} 10... b6 {[%clk 0:02:46.4]} 11. Re1 {[%clk 0:02:57.9]}
11... Ba6 {[%clk 0:02:45.4]} 12. c4 {[%clk 0:02:57.7]} 12... a4 {[%clk
0:02:41.4]} 13. b4 {[%clk 0:02:46.4]} 13... dxc4 {[%clk 0:02:38.4]} 14. Nxc4
{[%clk 0:02:46.3]} 14... Nd5 {[%clk 0:02:23.2]} 15. Rc1 {[%clk 0:02:42.1]} 15...
Nf4 {[%clk 0:02:12.1]} 16. Bb1 {[%clk 0:02:38.1]} 16... Bb5 {[%clk 0:02:04.5]}
17. g3 {[%clk 0:02:34.4]} 17... Nd5 {[%clk 0:01:52.3]} 18. Nfe5 {[%clk
0:02:24.9]} 18... Nxe5 {[%clk 0:01:51.4]} 19. Nxe5 {[%clk 0:02:23.9]} 19... Rc8
{[%clk 0:01:48.4]} 20. Qh5 {[%clk 0:02:22.9]} 20... Nf6 {[%clk 0:01:44.3]} 21.
Qg5 {[%clk 0:02:09.8]} 21... Qd5 {[%clk 0:01:40.5]} 22. h4 {[%clk 0:01:33.3]}
22... h6 {[%clk 0:01:27.6]} 23. Qe3 {[%clk 0:01:30.7]} 23... Bd6 {[%clk
0:01:19.3]} 24. f3 {[%clk 0:00:56.4]} 24... Rxc1 {[%clk 0:01:06.9]} 25. Rxc1
{[%clk 0:00:55]} 25... Nd7 {[%clk 0:01:00.3]} 26. g4 {[%clk 0:00:43.5]} 26...
Nxe5 {[%clk 0:00:53]} 27. dxe5 {[%clk 0:00:40.3]} 27... Be7 {[%clk 0:00:50.5]}
28. g5 {[%clk 0:00:34.9]} 28... hxg5 {[%clk 0:00:47]} 29. hxg5 {[%clk
0:00:34.7]} 29... g6 {[%clk 0:00:46.4]} 30. Kf2 {[%clk 0:00:22.9]} 30... Rd8
{[%clk 0:00:44.6]} 31. Kg3 {[%clk 0:00:18.8]} 31... Qd2 {[%clk 0:00:41.3]} 32.
Qxd2 {[%clk 0:00:16]} 32... Rxd2 {[%clk 0:00:41.1]} 33. Bc3 {[%clk 0:00:16]}
33... Re2 {[%clk 0:00:39.5]} 34. f4 {[%clk 0:00:12.1]} 34... Bc6 {[%clk
0:00:37.6]} 35. Bd4 {[%clk 0:00:07.5]} 35... Bd5 {[%clk 0:00:35.6]} 36. Bxb6
{[%clk 0:00:06.8]} 36... Rg2+ {[%clk 0:00:34]} 37. Kh3 {[%clk 0:00:06.9]} 37...
Rb2 {[%clk 0:00:31.5]} 38. Bd3 {[%clk 0:00:04.4]} 38... Rb3 {[%clk 0:00:30.9]}
39. Rc8+ {[%clk 0:00:04.4]} 39... Kg7 {[%clk 0:00:30.1]} 0-1